fUST/lending_fUST_20250108
["ID","MTS","AMOUNT","RATE_DAILY","PERIOD"]
[348009707,1736266243424,-500.0,0.00019726,3]
[348009709,1736266243434,-1103.46,0.00019726,3]
[348009711,1736266243443,-500.0,0.00019726,3]
[348009713,1736266243452,-3991.63,0.00019726,3]
[348009715,1736266243466,-500.0,0.00019726,3]
[348009717,1736266243476,-500.0,0.00019726,3]
[348009719,1736266243486,-2060.57,0.00019726,3]
[348009721,1736266243497,-500.0,0.00019726,3]
[348009723,1736266243507,-549.82930406,0.00019726,2]
[348009725,1736266243517,-810.01,0.00019726,3]
[348009727,1736266243526,-500.0,0.00019726,3]
[348009729,1736266243536,-500.0,0.00019726,3]
[348009731,1736266243546,-500.0,0.00019726,3]
[348009733,1736266243555,-500.0,0.00019726,3]
[348009735,1736266243565,-754.37,0.00019726,3]
[348009737,1736266243574,-1253.0,0.00019726,3]
[348009739,1736266243584,-1703.84,0.00019726,3]
[348009741,1736266243593,-500.0,0.00019726,3]
[348009743,1736266243603,-500.0,0.00019726,3]
[348009745,1736266243613,-500.0,0.00019726,3]
[348009747,1736266243623,-500.0,0.00019726,3]
[348009749,1736266243631,-500.0,0.00019726,3]
[348009751,1736266243641,-500.0,0.00019726,2]
[348009753,1736266243650,-500.0,0.00019726,3]
[348009755,1736266243659,-1685.27,0.00019726,3]
[348009757,1736266243668,-598.03,0.00019726,3]
[348009759,1736266243678,-500.0,0.00019726,3]
[348009761,1736266243688,-500.0,0.00019726,3]
[348009763,1736266243701,-500.0,0.00019726,3]
[348009765,1736266243713,-500.0,0.00019726,3]
[348009767,1736266243723,-168.21841568,0.000199,2]
[348009769,1736266243732,-500.0,0.00019973,2]
[348009771,1736266243741,-500.0,0.00019973,2]
[348009773,1736266243751,-151.0,0.00019983,5]
[348009775,1736266243760,-500.0,0.0002,3]
[348009777,1736266243770,-177196.13668681,0.0002,2]
[348009784,1736266243785,-1752.5,0.0002,2]
[348009788,1736266243798,-8061.7875921,0.0002,2]
[348009823,1736266244088,-150.45300202,0.00019473,2]
[348009825,1736266244098,-747.06646209,0.0002,2]
[348009827,1736266244110,-3311.6,0.0002,2]
[348011409,1736266436498,-521.19586791,0.00019078,2]
[348011410,1736266436523,-499.0,0.00019177,2]
[348011411,1736266436548,-300.0,0.00019177,2]
[348011412,1736266436573,-500.0,0.00019178,2]
[348011413,1736266436597,-630.72070573,0.00019178,2]
[348011414,1736266436621,-900.15,0.00019178,2]
[348011415,1736266436645,-519.96,0.00019178,2]
[348011416,1736266436674,-3492.68,0.00019178,2]
[348011417,1736266436698,-1673.76,0.00019178,2]
[348011418,1736266436724,-2596.55,0.00019178,2]
[348011419,1736266436748,-500.0,0.00019178,2]
[348011420,1736266436775,-500.0,0.00019178,2]
[348011421,1736266436799,-500.0,0.00019178,2]
[348011422,1736266436823,-500.0,0.00019178,2]
[348011423,1736266436848,-500.0,0.00019178,2]
[348011424,1736266436872,-500.0,0.00019178,2]
[348011425,1736266436901,-781.95,0.00019178,2]
[348011426,1736266436928,-500.0,0.00019178,2]
[348011427,1736266436953,-500.0,0.00019178,2]
[348011428,1736266436978,-1061.72,0.00019178,2]
[348011429,1736266437003,-20349.29,0.00019178,2]
[348011430,1736266437029,-628.58,0.00019178,2]
[348011431,1736266437052,-500.0,0.00019178,2]
[348011432,1736266437076,-996.96,0.00019178,2]
[348011433,1736266437099,-771.97,0.00019178,2]
[348011434,1736266437132,-500.0,0.00019178,2]
[348011435,1736266437164,-903.57,0.00019178,2]
[348011436,1736266437191,-611.21,0.00019178,2]
[348011437,1736266437217,-500.0,0.00019178,2]
[348011438,1736266437241,-518.88,0.00019178,2]
[348011439,1736266437266,-500.0,0.00019178,2]
[348011440,1736266437290,-277.00922841,0.00019178,2]
[348011441,1736266437316,-4365.47,0.00019178,2]
[348011442,1736266437340,-500.0,0.00019178,2]
[348011443,1736266437365,-500.0,0.00019178,2]
[348011444,1736266437388,-500.0,0.00019178,2]
[348011445,1736266437415,-1536.66,0.00019178,2]
[348011446,1736266437438,-500.0,0.00019178,2]
[348011447,1736266437463,-965.53,0.00019178,2]
[348011448,1736266437487,-500.0,0.00019178,2]
[348011449,1736266437514,-513.23,0.00019178,2]
[348011450,1736266437537,-500.0,0.00019178,2]
[348011451,1736266437560,-500.0,0.00019178,2]
[348011452,1736266437584,-500.0,0.00019178,2]
[348011453,1736266437608,-1559.46,0.00019178,2]
[348011454,1736266437632,-500.0,0.00019178,2]
[348011455,1736266437659,-761.69,0.00019178,2]
[348011456,1736266437684,-2035.98,0.00019178,2]
[348011457,1736266437707,-500.0,0.00019178,2]
[348011458,1736266437730,-500.0,0.00019178,2]
[348011459,1736266437754,-504.47090503,0.00019178,2]
[348011460,1736266437779,-500.0,0.00019178,2]
[348011461,1736266437803,-898.38,0.00019178,2]
[348011462,1736266437828,-500.0,0.00019178,2]
[348011463,1736266437852,-500.0,0.00019178,2]
[348011464,1736266437876,-745.4,0.00019178,2]
[348011465,1736266437908,-500.0,0.00019178,2]
[348011466,1736266437932,-500.0,0.00019178,2]
[348011467,1736266437959,-500.0,0.00019178,2]
[348011468,1736266437985,-500.0,0.00019178,2]
[348011469,1736266438008,-500.0,0.00019178,2]
[348011470,1736266438032,-500.0,0.00019178,2]
[348011471,1736266438055,-500.0,0.00019178,2]
[348011472,1736266438079,-500.0,0.00019178,2]
[348011473,1736266438103,-699.66,0.00019178,2]
[348011474,1736266438126,-500.0,0.00019178,2]
[348011475,1736266438151,-1918.27,0.00019178,2]
[348011476,1736266438173,-500.0,0.00019178,2]
[348011477,1736266438196,-1224.05,0.000192,2]
[348011478,1736266438219,-394.0,0.00019252,2]
[348011479,1736266438243,-500.0,0.00019451,2]
[348011480,1736266438267,-500.0,0.00019451,2]
[348011481,1736266438290,-500.0,0.00019451,2]
[348011482,1736266438313,-502.77137632,0.00019451,2]
[348011483,1736266438337,-500.0,0.00019451,2]
[348011484,1736266438360,-181.0,0.00019451,2]
[348011485,1736266438384,-500.0,0.00019451,2]
[348011486,1736266438411,-500.0,0.00019451,2]
[348011487,1736266438437,-500.0,0.00019451,2]
[348011488,1736266438460,-500.0,0.00019451,2]
[348011489,1736266438484,-500.0,0.00019451,2]
[348011490,1736266438508,-500.0,0.00019451,2]
[348011491,1736266438532,-500.0,0.00019451,2]
[348011492,1736266438554,-500.0,0.00019451,2]
[348011493,1736266438578,-500.0,0.00019451,2]
[348011494,1736266438601,-500.0,0.00019451,2]
[348011495,1736266438626,-500.0,0.00019451,2]
[348011496,1736266438650,-592.60138579,0.00019451,2]
[348011497,1736266438673,-395.83276703,0.00019451,2]
[348011498,1736266438698,-188.03059345,0.00019451,2]
[348011499,1736266438721,-500.0,0.00019452,3]
[348011500,1736266438745,-900.15,0.00019452,3]
[348011501,1736266438769,-519.96,0.00019452,3]
[348011502,1736266438795,-1673.76,0.00019452,3]
[348011503,1736266438820,-3492.68,0.00019452,3]
[348011504,1736266438848,-2596.55,0.00019452,3]
[348011505,1736266438871,-500.0,0.00019452,3]
[348011506,1736266438900,-500.0,0.00019452,3]
[348011507,1736266438927,-500.0,0.00019452,3]
[348011508,1736266438951,-500.0,0.00019452,2]
[348011509,1736266438975,-781.95,0.00019452,3]
[348011510,1736266438999,-500.0,0.00019452,3]
[348011511,1736266439023,-262.25013334,0.00019452,3]
[348011512,1736266439049,-1061.72,0.00019452,3]
[348011513,1736266439073,-20349.29,0.00019452,3]
[348011514,1736266439096,-500.0,0.00019452,3]
[348011515,1736266439121,-996.96,0.00019452,3]
[348011516,1736266439145,-771.97,0.00019452,3]
[348011517,1736266439173,-500.0,0.00019452,3]
[348011518,1736266439198,-903.57,0.00019452,3]
[348011519,1736266439223,-611.21,0.00019452,3]
[348011520,1736266439247,-518.88,0.00019452,3]
[348011521,1736266439271,-500.0,0.00019452,3]
[348011522,1736266439295,-4365.47,0.00019452,3]
[348011523,1736266439320,-500.0,0.00019452,3]
[348011524,1736266439344,-1536.66,0.00019452,3]
[348011525,1736266439369,-965.53,0.00019452,3]
[348011526,1736266439396,-500.0,0.00019452,3]
[348011527,1736266439425,-513.23,0.00019452,3]
[348011528,1736266439454,-500.0,0.00019452,3]
[348011529,1736266439480,-500.0,0.00019452,3]
[348011530,1736266439505,-1559.46,0.00019452,3]
[348011531,1736266439530,-500.0,0.00019452,3]
[348011532,1736266439776,-761.69,0.00019452,3]
[348011533,1736266439806,-2035.98,0.00019452,3]
[348011534,1736266439830,-500.0,0.00019452,3]
[348011535,1736266439858,-155.0314029,0.00019452,3]
[348011536,1736266439883,-898.38,0.00019452,3]
[348011537,1736266439913,-500.0,0.00019452,3]
[348011538,1736266439937,-500.0,0.00019452,3]
[348011539,1736266439961,-745.4,0.00019452,3]
[348011540,1736266439985,-500.0,0.00019452,3]
[348011541,1736266440010,-500.0,0.00019452,3]
[348011542,1736266440035,-500.0,0.00019452,3]
[348011543,1736266440059,-500.0,0.00019452,3]
[348011544,1736266440084,-699.66,0.00019452,3]
[348011545,1736266440108,-500.0,0.00019452,3]
[348011546,1736266440136,-1918.27,0.00019452,3]
[348011547,1736266440164,-500.0,0.00019452,3]
[348011548,1736266440188,-521.19586791,0.00019638,2]
[348011549,1736266440212,-302.9394212,0.00019641,2]
[348011550,1736266440236,-500.0,0.00019726,3]
[348011551,1736266440263,-900.15,0.00019726,3]
[348011552,1736266440289,-519.96,0.00019726,3]
[348011553,1736266440316,-142.45034498,0.00019726,3]
[348011575,1736266462278,248.628006,0.00013973,2]
[348011681,1736266674138,10000.0,0.00025,120]
[348011687,1736266773807,14064.08886307,0.00021917,120]
[348011759,1736267142961,1000.0,0.00025,120]
[348011787,1736267324289,999.999999,0.00025,120]
[348011791,1736267333588,251.006004,0.00013973,2]
[348011826,1736267436259,-1000.0,0.00019,19]
[348011827,1736267436269,-497.37387131,0.00019,2]
[348011828,1736267436279,-3167.30252265,0.00019078,2]
[348011829,1736267436290,-152.013,0.00019177,2]
[348011830,1736267436300,-300.0,0.00019177,2]
[348011831,1736267436311,-288.06682064,0.00019177,2]
[348011832,1736267436322,-266.20364078,0.00019177,2]
[348011833,1736267436332,-243.11451038,0.00019177,2]
[348011834,1736267436343,-500.0,0.00019178,2]
[348011835,1736267436354,-500.0,0.00019178,2]
[348011836,1736267436364,-500.0,0.00019178,2]
[348011837,1736267436375,-500.0,0.00019178,2]
[348011838,1736267436385,-500.0,0.00019178,2]
[348011839,1736267436396,-501.97550749,0.00019178,2]
[348011840,1736267436406,-500.0,0.00019178,2]
[348011841,1736267436416,-500.0,0.00019178,2]
[348011842,1736267436426,-500.0,0.00019178,2]
[348011843,1736267436436,-500.0,0.00019178,2]
[348011844,1736267436447,-151.34486279,0.00019178,2]
[348011845,1736267436457,-500.0,0.00019178,2]
[348011846,1736267436467,-500.0,0.00019178,2]
[348011848,1736267436479,-500.0,0.00019178,2]
[348011850,1736267436489,-500.0,0.00019178,2]
[348011852,1736267436502,-500.0,0.00019178,2]
[348011854,1736267436512,-500.0,0.00019178,2]
[348011855,1736267436521,-500.0,0.00019178,2]
[348011856,1736267436531,-500.0,0.00019178,2]
[348011857,1736267436541,-500.0,0.00019178,2]
[348011858,1736267436551,-500.0,0.00019178,2]
[348011859,1736267436561,-516.08,0.00019178,2]
[348011860,1736267436571,-500.0,0.00019178,2]
[348011861,1736267436580,-509.0580298,0.00019178,2]
[348011862,1736267436589,-500.0,0.00019178,2]
[348011863,1736267436599,-500.0,0.00019178,2]
[348011864,1736267436610,-500.0,0.00019178,2]
[348011865,1736267436620,-500.0,0.00019178,2]
[348011866,1736267436630,-500.0,0.00019178,2]
[348011867,1736267436638,-684.93,0.00019178,2]
[348011868,1736267436648,-178.72001784,0.00019178,2]
[348011869,1736267436657,-1005.26,0.00019178,2]
[348011870,1736267436667,-500.0,0.00019178,2]
[348011871,1736267436677,-500.0,0.00019178,2]
[348011872,1736267436686,-937.78,0.00019178,2]
[348011873,1736267436696,-500.0,0.00019178,2]
[348011874,1736267436706,-500.0,0.00019178,2]
[348011875,1736267436715,-261.22282466,0.00019178,2]
[348011876,1736267436729,-500.0,0.00019178,2]
[348011877,1736267436739,-500.0,0.00019178,2]
[348011878,1736267436748,-500.0,0.00019178,2]
[348011879,1736267436758,-957.72,0.00019178,2]
[348011880,1736267436767,-500.0,0.00019178,2]
[348011881,1736267436776,-636.18,0.00019178,2]
[348011882,1736267436786,-659.36,0.00019178,2]
[348011883,1736267436795,-500.0,0.00019178,2]
[348011884,1736267436805,-581.1,0.00019178,2]
[348011885,1736267436815,-500.0,0.00019178,2]
[348011886,1736267436824,-1041.67,0.00019178,2]
[348011887,1736267436833,-998.26,0.00019178,2]
[348011888,1736267436843,-500.0,0.00019178,2]
[348011889,1736267436852,-500.0,0.00019178,2]
[348011890,1736267436861,-500.0,0.00019178,2]
[348011891,1736267436874,-500.0,0.00019178,2]
[348011892,1736267436883,-500.0,0.00019178,2]
[348011893,1736267436893,-500.0,0.00019178,2]
[348011894,1736267436902,-500.0,0.00019178,2]
[348011895,1736267436912,-500.0,0.00019178,2]
[348011896,1736267436922,-500.0,0.00019178,2]
[348011897,1736267436932,-500.0,0.00019178,2]
[348011898,1736267436941,-634.24,0.00019178,2]
[348011899,1736267436951,-500.0,0.00019178,2]
[348011900,1736267436960,-500.0,0.00019178,2]
[348011901,1736267436969,-500.0,0.00019178,2]
[348011902,1736267436981,-608.02,0.00019178,2]
[348011903,1736267436991,-500.0,0.00019178,2]
[348011904,1736267437000,-510.21337728,0.00019178,2]
[348011905,1736267437009,-500.0,0.00019178,2]
[348011906,1736267437019,-510.87539464,0.00019178,2]
[348011907,1736267437029,-500.0,0.00019178,2]
[348011908,1736267437038,-500.0,0.00019178,2]
[348011909,1736267437047,-1203.04,0.00019178,2]
[348011910,1736267437057,-500.0,0.00019178,2]
[348011911,1736267437067,-500.0,0.00019178,2]
[348011912,1736267437076,-695.47,0.00019178,2]
[348011913,1736267437086,-501.76117965,0.00019178,2]
[348011914,1736267437095,-839.31,0.00019178,2]
[348011915,1736267437106,-500.0,0.00019178,2]
[348011916,1736267437116,-500.0,0.00019178,2]
[348011917,1736267437126,-505.96997418,0.00019178,2]
[348011918,1736267437135,-519.92,0.00019178,2]
[348011919,1736267437145,-880.95,0.00019178,2]
[348011920,1736267437154,-616.6,0.00019178,2]
[348011921,1736267437163,-500.0,0.00019178,2]
[348011922,1736267437173,-664.3,0.00019178,2]
[348011923,1736267437183,-730.17,0.00019178,2]
[348011924,1736267437192,-1040.33,0.00019178,2]
[348011925,1736267437201,-649.74,0.00019178,2]
[348011926,1736267437211,-500.0,0.00019178,2]
[348011927,1736267437220,-504.85,0.00019178,2]
[348011928,1736267437234,-500.0,0.00019178,2]
[348011929,1736267437244,-500.0,0.00019178,2]
[348011930,1736267437253,-500.0,0.00019178,2]
[348011931,1736267437263,-563.62,0.00019178,2]
[348011932,1736267437272,-500.0,0.00019178,2]
[348011933,1736267437283,-500.0,0.00019178,2]
[348011934,1736267437293,-500.0,0.00019178,2]
[348011935,1736267437303,-161.60800485,0.00019178,2]
[348011936,1736267437313,-513.37,0.00019178,2]
[348011937,1736267437322,-500.0,0.00019178,2]
[348011938,1736267437332,-755.84,0.00019178,2]
[348011939,1736267437342,-1174.33,0.00019178,2]
[348011940,1736267437351,-500.0,0.00019178,2]
[348011941,1736267437361,-639.05,0.00019178,2]
[348011942,1736267437371,-500.0,0.00019178,2]
[348011943,1736267437381,-500.0,0.00019178,2]
[348011944,1736267437392,-2112.64,0.00019178,2]
[348011945,1736267437403,-524.87098094,0.00019178,2]
[348011946,1736267437414,-500.0,0.00019178,2]
[348011947,1736267437424,-500.0,0.00019178,2]
[348011948,1736267437434,-500.0,0.00019178,2]
[348011949,1736267437443,-500.0,0.00019178,2]
[348011950,1736267437454,-500.0,0.00019178,2]
[348011951,1736267437464,-500.0,0.00019178,2]
[348011952,1736267437477,-500.0,0.00019178,2]
[348011953,1736267437487,-500.0,0.00019178,2]
[348011954,1736267437497,-543.16,0.00019178,2]
[348011955,1736267437506,-500.0,0.00019178,2]
[348011956,1736267437515,-786.03,0.00019178,2]
[348011957,1736267437524,-1035.57,0.00019178,2]
[348011958,1736267437534,-500.0,0.00019178,2]
[348011959,1736267437543,-500.0,0.00019178,2]
[348011960,1736267437552,-880.07,0.00019178,2]
[348011961,1736267437562,-3386.0,0.00019178,2]
[348011962,1736267437572,-1376.48,0.00019178,2]
[348011963,1736267437582,-500.0,0.00019178,2]
[348011964,1736267437591,-500.0,0.00019178,2]
[348011965,1736267437601,-500.0,0.00019178,2]
[348011966,1736267437610,-500.0,0.00019178,2]
[348011967,1736267437620,-1294.78,0.00019178,2]
[348011968,1736267437630,-503.15664519,0.00019178,2]
[348011970,1736267437639,-573.87,0.00019178,2]
[348011972,1736267437649,-26296.05,0.00019178,2]
[348011974,1736267437658,-1172.03,0.00019178,2]
[348011976,1736267437668,-500.0,0.00019178,2]
[348011978,1736267437677,-500.0,0.00019178,2]
[348011980,1736267437686,-500.0,0.00019178,2]
[348011982,1736267437695,-500.0,0.00019178,2]
[348011984,1736267437704,-790.53,0.00019178,2]
[348011986,1736267437714,-500.0,0.00019178,2]
[348011988,1736267437725,-1264.56,0.00019178,2]
[348011990,1736267437735,-2751.08,0.00019178,2]
[348011992,1736267437745,-6357.51,0.00019178,2]
[348011994,1736267437754,-500.0,0.00019178,2]
[348011996,1736267437763,-2334.77,0.00019178,2]
[348011998,1736267437773,-500.0,0.00019178,2]
[348012000,1736267437782,-500.0,0.00019178,2]
[348012002,1736267437791,-500.0,0.00019178,2]
[348012004,1736267437800,-500.0,0.00019178,2]
[348012005,1736267437812,-2105.36,0.00019178,2]
[348012007,1736267437821,-2031.85,0.00019178,2]
[348012009,1736267437831,-1420.58,0.00019178,2]
[348012011,1736267437840,-500.0,0.00019178,2]
[348012013,1736267437849,-500.0,0.00019178,2]
[348012015,1736267437859,-4740.49,0.00019178,2]
[348012017,1736267437868,-500.0,0.00019178,2]
[348012019,1736267437877,-500.0,0.00019178,2]
[348012021,1736267437887,-500.0,0.00019178,2]
[348012023,1736267437896,-500.0,0.00019178,2]
[348012024,1736267437905,-500.0,0.00019178,2]
[348012026,1736267437915,-866.49,0.00019178,2]
[348012029,1736267437926,-1717.81,0.00019178,2]
[348012030,1736267437936,-153.89,0.00019178,2]
[348012032,1736267437945,-164.568046,0.00019178,2]
[348012034,1736267437955,-1244.88,0.000192,2]
[348012036,1736267437964,-737.72043197,0.00019407,2]
[348012038,1736267437975,-318.7394924,0.00019451,2]
[348012040,1736267437984,-500.0,0.00019452,3]
[348012042,1736267437994,-498.94246959,0.00019452,3]
[348012044,1736267438003,-500.0,0.00019452,3]
[348012045,1736267438013,-500.0,0.00019452,3]
[348012047,1736267438022,-500.0,0.00019452,3]
[348012049,1736267438031,-500.0,0.00019452,3]
[348012050,1736267438041,-500.0,0.00019452,3]
[348012052,1736267438051,-500.0,0.00019452,3]
[348012054,1736267438061,-500.0,0.00019452,3]
[348012056,1736267438070,-500.0,0.00019452,3]
[348012058,1736267438080,-500.0,0.00019452,3]
[348012059,1736267438090,-500.0,0.00019452,3]
[348012060,1736267438099,-500.0,0.00019452,3]
[348012062,1736267438111,-500.0,0.00019452,3]
[348012065,1736267438120,-500.0,0.00019452,3]
[348012068,1736267438130,-500.0,0.00019452,3]
[348012070,1736267438139,-500.0,0.00019452,3]
[348012072,1736267438150,-436.17561299,0.00019452,3]
[348012074,1736267438160,-500.0,0.00019452,3]
[348012078,1736267438169,-516.08,0.00019452,3]
[348012080,1736267438180,-500.0,0.00019452,3]
[348012082,1736267438189,-503.70279704,0.00019452,3]
[348012083,1736267438198,-500.0,0.00019452,3]
[348012084,1736267438208,-500.0,0.00019452,3]
[348012085,1736267438217,-500.0,0.00019452,3]
[348012086,1736267438237,-500.0,0.00019452,3]
[348012087,1736267438248,-684.93,0.00019452,3]
[348012088,1736267438258,-1005.26,0.00019452,3]
[348012089,1736267438267,-500.0,0.00019452,3]
[348012090,1736267438277,-500.0,0.00019452,3]
[348012091,1736267438287,-937.78,0.00019452,3]
[348012092,1736267438297,-500.0,0.00019452,3]
[348012093,1736267438309,-500.0,0.00019452,3]
[348012094,1736267438319,-500.0,0.00019452,3]
[348012095,1736267438329,-500.0,0.00019452,3]
[348012096,1736267438338,-500.0,0.00019452,3]
[348012097,1736267438348,-957.72,0.00019452,3]
[348012098,1736267438357,-500.0,0.00019452,3]
[348012099,1736267438367,-636.18,0.00019452,3]
[348012100,1736267438376,-659.36,0.00019452,3]
[348012101,1736267438386,-500.0,0.00019452,3]
[348012102,1736267438395,-550.45816564,0.00019452,3]
[348012103,1736267438405,-581.1,0.00019452,3]
[348012104,1736267438415,-1041.67,0.00019452,3]
[348012105,1736267438424,-998.26,0.00019452,3]
[348012106,1736267438434,-500.0,0.00019452,3]
[348012107,1736267438444,-500.0,0.00019452,3]
[348012108,1736267438454,-500.0,0.00019452,3]
[348012109,1736267438463,-504.52788573,0.00019452,3]
[348012110,1736267438473,-500.0,0.00019452,3]
[348012111,1736267438482,-500.0,0.00019452,3]
[348012112,1736267438492,-500.0,0.00019452,3]
[348012113,1736267438502,-500.0,0.00019452,3]
[348012114,1736267438511,-500.0,0.00019452,3]
[348012115,1736267438521,-634.24,0.00019452,3]
[348012116,1736267438531,-500.0,0.00019452,3]
[348012117,1736267438541,-500.0,0.00019452,3]
[348012118,1736267438550,-500.0,0.00019452,3]
[348012119,1736267438560,-608.02,0.00019452,3]
[348012120,1736267438570,-500.0,0.00019452,3]
[348012121,1736267438579,-500.0,0.00019452,3]
[348012122,1736267438589,-500.0,0.00019452,3]
[348012123,1736267438599,-500.0,0.00019452,3]
[348012124,1736267438610,-1203.04,0.00019452,3]
[348012125,1736267438620,-500.0,0.00019452,3]
[348012126,1736267438629,-500.0,0.00019452,3]
[348012127,1736267438639,-695.47,0.00019452,3]
[348012128,1736267438649,-839.31,0.00019452,3]
[348012129,1736267438658,-500.0,0.00019452,3]
[348012130,1736267438667,-500.0,0.00019452,3]
[348012131,1736267438678,-519.92,0.00019452,3]
[348012132,1736267438688,-880.95,0.00019452,3]
[348012133,1736267438698,-616.6,0.00019452,3]
[348012134,1736267438708,-500.0,0.00019452,3]
[348012135,1736267438718,-664.3,0.00019452,3]
[348012136,1736267438729,-730.17,0.00019452,3]
[348012139,1736267438739,-1040.33,0.00019452,3]
[348012142,1736267438748,-649.74,0.00019452,3]
[348012144,1736267438758,-500.0,0.00019452,3]
[348012146,1736267438767,-504.85,0.00019452,3]
[348012148,1736267438777,-500.0,0.00019452,3]
[348012149,1736267438787,-500.0,0.00019452,3]
[348012150,1736267438796,-500.0,0.00019452,3]
[348012151,1736267438806,-563.62,0.00019452,3]
[348012153,1736267438815,-500.0,0.00019452,3]
[348012155,1736267438826,-500.0,0.00019452,3]
[348012156,1736267438835,-547.39396296,0.00019452,3]
[348012157,1736267438844,-513.37,0.00019452,3]
[348012158,1736267438854,-500.0,0.00019452,3]
[348012159,1736267438863,-755.84,0.00019452,3]
[348012160,1736267438873,-1174.33,0.00019452,3]
[348012161,1736267438882,-500.0,0.00019452,3]
[348012162,1736267438891,-639.05,0.00019452,3]
[348012163,1736267438902,-500.0,0.00019452,3]
[348012164,1736267438911,-500.0,0.00019452,3]
[348012166,1736267438920,-2112.64,0.00019452,3]
[348012167,1736267438930,-500.0,0.00019452,3]
[348012168,1736267438939,-500.0,0.00019452,3]
[348012169,1736267438949,-500.0,0.00019452,3]
[348012189,1736267439124,-500.0,0.00019452,3]
[348012191,1736267439134,-500.0,0.00019452,3]
[348012193,1736267439143,-500.0,0.00019452,3]
[348012195,1736267439152,-500.0,0.00019452,3]
[348012197,1736267439161,-500.0,0.00019452,3]
[348012198,1736267439171,-543.16,0.00019452,3]
[348012199,1736267439180,-500.0,0.00019452,3]
[348012200,1736267439189,-786.03,0.00019452,3]
[348012201,1736267439198,-1035.57,0.00019452,3]
[348012202,1736267439207,-500.0,0.00019452,3]
[348012203,1736267439217,-500.0,0.00019452,3]
[348012204,1736267439228,-880.07,0.00019452,3]
[348012205,1736267439237,-3386.0,0.00019452,3]
[348012206,1736267439247,-1325.53414523,0.00019452,3]
[348012207,1736267439381,-50.94585477,0.00019452,3]
[348012208,1736267439391,-258.76813373,0.00019452,3]
[348012210,1736267439414,-241.23186627,0.00019452,3]
[348012212,1736267439423,-500.0,0.00019452,3]
[348012214,1736267439433,-500.0,0.00019452,3]
[348012216,1736267439443,-500.0,0.00019452,3]
[348012218,1736267439452,-1294.78,0.00019452,3]
[348012220,1736267439462,-573.87,0.00019452,3]
[348012222,1736267439473,-4790.33433546,0.00019452,3]
[348012224,1736267439486,-9701.07000577,0.00019452,3]
[348012228,1736267439507,-11804.64565877,0.00019452,3]
[348012230,1736267439516,-1172.03,0.00019452,3]
[348012232,1736267439525,-500.0,0.00019452,3]
[348012234,1736267439535,-500.0,0.00019452,3]
[348012236,1736267439544,-500.0,0.00019452,3]
[348012238,1736267439554,-500.0,0.00019452,3]
[348012240,1736267439563,-790.53,0.00019452,3]
[348012242,1736267439573,-500.0,0.00019452,3]
[348012244,1736267439582,-1264.56,0.00019452,3]
[348012246,1736267439591,-2751.08,0.00019452,3]